Cogmind - Beta 15 @@@ ROGUE MODE // 2025.06.22 @ 13:49:10 Player: Cynic Result: Destroyed by YI-UF0 with YI-UF0's Doublenader Performance ------------- Evolutions (0) 0 Regions Visited (4) 800 Robots Destroyed (13) 65 Value Destroyed (226) 226 Prototype IDs (0) 0 Alien Tech Used (0) 0 Bonus (0) 0 TOTAL SCORE: 1091 Bonus ------- None Cogmind --------- Core Integrity 0/250 Matter 295/300 Energy 121/125 System Corruption 1% Temperature Cool (32) Movement Rolling (80) Location -9/Mines Parts ------- > --- POWER (1) -------- Light Ion Engine > --- PROPULSION (2) --- Wheel Wheel > --- UTILITY (2) ------ Heat Sink Seismic Detector > --- WEAPON (2) ------- Particle Gun > --- INVENTORY (5) ---- Power Shielding Light Armor Plating Medium Laser Light Assault Rifle Grenade Launcher Peak State ------------ > --- POWER ------------ Ion Engine > --- PROPULSION ------- Aluminum Leg Aluminum Leg > --- UTILITY ---------- Improved Heat Sink Small Storage Unit > --- WEAPON ----------- Small Laser Particle Gun > --- INVENTORY -------- Aluminum Leg Aluminum Leg Medium Laser Light Assault Rifle Light Assault Rifle [Rating: 10] Favorites ----------- Power Ion Engine Engine Ion Engine Propulsion Aluminum Leg Leg Aluminum Leg Wheel Wheel Flight Unit Flight Unit Utility Light Armor Plating Device Heat Sink Storage Small Storage Unit Protection Light Armor Plating Weapon Particle Gun Energy Gun Particle Gun Ballistic Gun Light Assault Rifle Build | -11 -10 -10 -10 -9 ------- Run | Yrd Mat Min Exi Min Slots Evolved . | . . . . . Power . | . . . . . Propulsion . | . . . . . Utility . | . . . . . Weapon . | . . . . . Parts Attached 25 | 6 6 9 . 4 Power 2 | 1 . . . 1 Engine 2 | 1 . . . 1 Core . | . . . . . Reactor . | . . . . . Propulsion 8 | 2 1 3 . 2 Treads . | . . . . . Leg 4 | 2 1 1 . . Wheel 2 | . . . . 2 Hover . | . . . . . Flight 2 | . . 2 . . Utility 6 | 1 1 3 . 1 Device 4 | . 1 2 . 1 Storage 1 | 1 . . . . Processor . | . . . . . Hackware . | . . . . . Protection 1 | . . 1 . . Artifact . | . . . . . Weapon 9 | 2 4 3 . . Energy Gun 5 | 1 3 1 . . Energy Cannon . | . . . . . Ballistic Gun 4 | 1 1 2 . . Ballistic Cannon . | . . . . . Launcher . | . . . . . Special Weapon . | . . . . . Impact Weapon . | . . . . . Slashing Weapon . | . . . . . Piercing Weapon . | . . . . . Special Melee Weapon . | . . . . . Unidentified Prototypes . | . . . . . Parts Lost 6 | . . 5 . 1 Power 1 | . . 1 . . Propulsion 1 | . . 1 . . Utility 2 | . . 2 . . Weapon 2 | . . 1 . 1 Highest Loss Streak 4 | . . 4 . 1 To Critical Strikes . | . . . . . Average Backups 4 | 1 3 4 5 3 Power . | . . . . . Propulsion . | . 1 . . . Utility . | . . . 1 1 Weapon 3 | . 2 3 4 2 Tool/Special . | . . . . . Unused Backups 3 | . . 1 . 2 Power . | . . . . . Propulsion 1 | . . 1 . . Utility 1 | . . . . 1 Weapon 1 | . . . . 1 Tool/Special . | . . . . . Average Slot Usage (%) 85 | . 90 79 85 88 Engine 5 | . 14 4 . 4 Leg 14 | . 28 12 14 1 Wheel 4 | . . . . 22 Flight 8 | . . 13 14 1 Device 11 | . 5 10 14 17 Storage 3 | . 14 2 . . Protection 7 | . . 6 14 10 Energy Gun 19 | . 18 8 28 28 Ballistic Gun 8 | . 9 19 . . Peak Build Rating 10 | 6 10 9 8 9 Average Rating 7 | 3 7 6 8 8 On Entrance 6 | . 6 9 8 8 Naked Turns . | . . . . . Heaviest Build 15 | 13 15 13 10 13 Greatest Support 20 | 20 20 20 10 20 Greatest Overweight (x) 3 | . . . . 3 Average Overweight (x) . | . . . . . Largest Inventory Capacity 8 | 8 8 8 5 5 Average Capacity 5 | 6 8 5 5 5 Most Carried 8 | 5 6 8 5 5 Average Carried 4 | 1 3 4 5 3 Final Capacity 8 | 8 8 5 5 5 Final Carried 6 | 1 6 5 5 5 Class Distribution -------------------- 60% | Scavenger-Mutant 40% | Mutant Dominant Class ---------------- Mutant | -10/Materials Mutant | -10/Mines Scavenger-Mutant | -10/Exiles Scavenger-Mutant | -9/Mines Resources | -11 -10 -10 -10 -9 ----------- Run | Yrd Mat Min Exi Min Matter Collected 487 | 229 75 94 . 89 Remotely . | . . . . . Salvage Created 329 | . 94 146 . 89 Parts 34 | . 7 9 . 18 Haulers Intercepted . | . . . . . Recyclers Shooed 1 | . . 1 . . Parts Field Recycled . | . . . . . Retrieved Matter . | . . . . . Parts Self-Destructed . | . . . . . Prevented . | . . . . . Kills | -11 -10 -10 -10 -9 ------- Run | Yrd Mat Min Exi Min Combat Hostiles Destroyed 7 | . 2 5 . . Guns 7 | . 2 5 . . Classes Destroyed 5 | . 1 2 . 2 Worker 1 | . . . . 1 Builder 1 | . . . . 1 Tunneler 4 | . . 1 . 3 Swarmer 3 | . . 3 . . Grunt 4 | . 2 2 . . Best Kill Streak 3 | . 2 3 . 2 Combat Bots Only 3 | . 2 3 . . Max Kills in Single Turn 2 | . 1 2 . 1 Gunslinging 1 | . . 1 . . Exploded . | . . . . . Melee . | . . . . . Uniques/NPCs Destroyed . | . . . . . Combat | -11 -10 -10 -10 -9 -------- Run | Yrd Mat Min Exi Min Hostile Shots Fired 77 | . 15 52 . 10 Missed 25 | . 4 17 . 4 Hits 52 | . 11 35 . 6 Projectile 52 | . 11 35 . 6 AOE 8 | . . 2 . 6 Critical Strikes 2 | . . 2 . . Damage Taken 839 | . 134 496 . 209 Core 260 | . 50 120 . 90 Absorbed by Shields . | . . . . . Core Remaining (%) 100 | 100 . . . . Volleys Fired 45 | . 7 28 . 10 Largest 2 | . 2 2 . 2 Hottest 130 | . 70 80 . 130 Shots Fired 90 | . 14 56 . 20 Gun 90 | . 14 56 . 20 Cannon . | . . . . . Launcher . | . . . . . Special . | . . . . . Kinetic 51 | . 7 44 . . Thermal 39 | . 7 12 . 20 Explosive . | . . . . . Electromagnetic . | . . . . . Robot Hit Streak 6 | . 6 5 . 6 Robot Miss Streak 4 | . 3 4 . 4 Penetration Max . | . . . . . Secondary Targets 2 | . 1 1 . . Max Gunslinging Chain 1 | . 1 1 . . Shots Hit Robots 49 | . 9 31 . 9 Core Hits 23 | . 7 11 . 5 Critical Kills . | . . . . . Critical Parts Destroyed . | . . . . . Critical Strikes 3 | . 2 . . 1 Burn 3 | . 2 . . 1 Melee Attacks . | . . . . . Impact . | . . . . . Slashing . | . . . . . Piercing . | . . . . . Sneak Attacks . | . . . . . Combat Hostiles . | . . . . . Follow-up Attacks . | . . . . . Damage Inflicted 533 | . 102 276 . 155 Guns 533 | . 102 276 . 155 Cannons . | . . . . . Explosions . | . . . . . Melee . | . . . . . Ramming . | . . . . . Kinetic 274 | . 51 223 . . Thermal 259 | . 51 53 . 155 Explosive . | . . . . . Electromagnetic . | . . . . . Impact . | . . . . . Slashing . | . . . . . Piercing . | . . . . . Highest Corruption 1 | . 1 1 1 1 Average Corruption 1 | . 1 1 1 1 Corruption Purged . | . . . . . Corruption Blocked . | . . . . . Effects 7 | . 1 2 2 2 Message Errors 1 | . . . . 1 Heat Flow Errors 2 | . 1 . 1 . Data Loss (minor) 3 | . . 1 1 1 Data Loss (major) 1 | . . 1 . . Overload Shots . | . . . . . Overflow Damage . | . . . . . Projectiles . | . . . . . Explosions . | . . . . . Melee . | . . . . . Knockbacks . | . . . . . Impact . | . . . . . Kinetic . | . . . . . Secondary . | . . . . . Self-Inflicted Damage . | . . . . . Shots . | . . . . . Rammed . | . . . . . Targets Rammed . | . . . . . Kicked . | . . . . . Crushed . | . . . . . Highest Temperature 388 | . 388 12 183 99 Average Temperature 114 | . 210 5 105 33 Received Heat Transfer 318 | . 78 228 . 12 Effects 1 | . 1 . . . Shutdowns 1 | . 1 . . . Siege Activations . | . . . . . Martial Activations . | . . . . . Shielding Activations . | . . . . . Robots Disrupted . | . . . . . Combat Hostiles . | . . . . . Robots Corrupted . | . . . . . Combat Hostiles . | . . . . . Parts Fried . | . . . . . Impact Corruptions . | . . . . . Robots Melted . | . . . . . Combat Hostiles . | . . . . . Parts Melted 2 | . . 1 . 1 Heat Transferred 828 | . 296 125 . 407 Parts Sabotaged . | . . . . . Parts Stolen . | . . . . . Parts Stripped . | . . . . . Power Chain Reactions . | . . . . . Alert | -11 -10 -10 -10 -9 ------- Run | Yrd Mat Min Exi Min Maximum Alert Level . | . . . . . Low Security (%) 100 | 100 100 100 . 100 Level 1 . | . . . . . Level 2 . | . . . . . Level 3 . | . . . . . Level 4 . | . . . . . Level 5 . | . . . . . High Security . | . . . . . Max Security . | . . . . . Peak Influence 70 | . 50 70 . 10 Initial . | . . . . . Average 9 | . 11 13 . 1 Influence Increases 200 | . 50 125 . 25 Destroy 0b10 Robot/C 140 | . 40 100 . . Destroy 0b10 Robot/NC 30 | . . 5 . 25 Destroy Leader 30 | . 10 20 . . Influence Decreases 200 | . 50 125 . 25 Time Decay 160 | . 50 85 . 25 Lost Part 40 | . . 40 . . Squads Dispatched 1 | . 1 . . . Investigation . | . . . . . Extermination . | . . . . . Reinforcement 1 | . 1 . . . Assault . | . . . . . Garrison . | . . . . . Intercept . | . . . . . Searches Triggered . | . . . . . Construction Impeded . | . . . . . Haulers Reinforced . | . . . . . Active Scanning Responses . | . . . . . Cargo Convoy Interrupts . | . . . . . Stealth | -11 -10 -10 -10 -9 --------- Run | Yrd Mat Min Exi Min Distress Signals . | . . . . . Communications Jammed . | . . . . . Distress Signals . | . . . . . Times Spotted 16 | . 3 7 . 6 Peak Tracking Total 4 | . 2 3 . 4 Tactical Retreats . | . . . . . Traps | -11 -10 -10 -10 -9 ------- Run | Yrd Mat Min Exi Min Traps Triggered 1 | . 1 . . . Indirectly . | . . . . . Trap Hack Attempts . | . . . . . Triggered . | . . . . . Disarmed . | . . . . . Reprogrammed . | . . . . . Reused . | . . . . . Traps Extracted . | . . . . . Installed . | . . . . . Triggered . | . . . . . Machines | -11 -10 -10 -10 -9 ---------- Run | Yrd Mat Min Exi Min Machines Disabled . | . . . . . Max in Single Turn . | . . . . . Machines Repaired . | . . . . . Machines Dismantled . | . . . . . Machines Sabotaged . | . . . . . Overloaded Fab Kills . | . . . . . Hacking | -11 -10 -10 -10 -9 --------- Run | Yrd Mat Min Exi Min Machines Accessed . | . . . . . Terminals . | . . . . . Fabricators . | . . . . . Repair Stations . | . . . . . Recycling Units . | . . . . . Scanalyzers . | . . . . . Garrison Access . | . . . . . Total Hacks . | . . . . . Successful . | . . . . . Failed . | . . . . . Catastrophic . | . . . . . Database Lockouts . | . . . . . Manual . | . . . . . Terminals . | . . . . . Fabricators . | . . . . . Repair Stations . | . . . . . Recycling Units . | . . . . . Scanalyzers . | . . . . . Garrison Access . | . . . . . Terminal Hacks . | . . . . . Fabricator Hacks . | . . . . . Repair Station Hacks . | . . . . . Recycling Unit Hacks . | . . . . . Scanalyzer . | . . . . . Garrison Access Hacks . | . . . . . Unauthorized Hacks . | . . . . . Terminals . | . . . . . Fabricators . | . . . . . Repair Stations . | . . . . . Recycling Units . | . . . . . Scanalyzers . | . . . . . Garrison Access . | . . . . . Data Cores Recovered . | . . . . . Used . | . . . . . Hacking Detections . | . . . . . Full Trace Events . | . . . . . Feedback Events . | . . . . . Feedback Blocked . | . . . . . Robot Schematics Acquired . | . . . . . Robots Built . | . . . . . Authchips . | . . . . . Time . | . . . . . Total Robot Build Rating . | . . . . . Part Schematics Acquired . | . . . . . Parts Built . | . . . . . Authchips . | . . . . . Time . | . . . . . Total Part Build Rating . | . . . . . Parts Repaired . | . . . . . Time . | . . . . . Parts Recycled . | . . . . . Recycled Matter . | . . . . . Retrieved Matter . | . . . . . Retrieved Components . | . . . . . Parts Scanalyzed . | . . . . . Part Schematics Acquired . | . . . . . Parts Damaged . | . . . . . Bothacking | -11 -10 -10 -10 -9 ------------ Run | Yrd Mat Min Exi Min Used RIF Installer . | . . . . . Robots Hacked . | . . . . . Non-combat . | . . . . . Combat . | . . . . . Robot Hacks Applied . | . . . . . Relay Couplers Released . | . . . . . Fabnet Peak Effective % . | . . . . . Robots Rewired . | . . . . . Allies Hacked . | . . . . . Hacks Repelled . | . . . . . Allies | -11 -10 -10 -10 -9 -------- Run | Yrd Mat Min Exi Min Total Allies . | . . . . . Largest Group . | . . . . . Highest-Rated Group . | . . . . . Highest-Rated Ally . | . . . . . Total Orders . | . . . . . Ally Attacks . | . . . . . Total Damage . | . . . . . Kills . | . . . . . Allies Corrupted . | . . . . . Allies Melted . | . . . . . Intel | -11 -10 -10 -10 -9 ------- Run | Yrd Mat Min Exi Min Active Infowar (turns) 109 | . . 52 . 57 Seismic 57 | . . . . 57 ECM 52 | . . 52 . . Robot Analysis Total . | . . . . . Derelict Logs Recovered 2 | . . . . 2 Drone Launches . | . . . . . Drone Recoveries . | . . . . . Exploration | -11 -10 -10 -10 -9 ------------- Run | Yrd Mat Min Exi Min Turns Passed 1111 | 48 228 362 266 207 Spaces Moved 885 | 41 162 260 222 200 Core 31 | 19 . 10 . 2 Treads . | . . . . . Legs 601 | 22 162 186 222 9 Wheels 189 | . . . . 189 Hover . | . . . . . Flight 64 | . . 64 . . Fastest Speed 37 | 50 120 37 120 80 Average Speed 103 | 87 120 96 120 83 Slowest Speed 200 | 120 120 120 120 200 Overloaded Moves . | . . . . . Propulsion Burnouts . | . . . . . Robots Hopped . | . . . . . Potential Cave-ins . | . . . . . Cave-ins Triggered . | . . . . . Exploration Rate (%) 39 | 3 29 53 61 49 Regions Visited 4 Branch Regions 3 Pre-discovered Areas . | . . . . . Known Exits Taken . | . . . . . Unknown Exits Taken 4 | 1 1 1 1 . Scrap Searched 2 | . . 1 . 1 Spaces Dug . | . . . . . Terrain Destroyed . | . . . . . Melee . | . . . . . Projectile . | . . . . . AOE . | . . . . . Terrain Rammed . | . . . . . Walls Destroyed . | . . . . . Machines Disabled . | . . . . . Actions | -11 -10 -10 -10 -9 --------- Run | Yrd Mat Min Exi Min Total 1000 | 52 180 324 221 223 Wait 10 | . . 10 . . Move 881 | 40 161 259 221 200 Hop . | . . . . . Pick Up 26 | 6 6 9 . 5 Fast Attach 2 | 1 . 1 . . Attach 15 | 5 1 6 . 3 Detach . | . . . . . Swap 10 | . 5 4 . 1 Drop 11 | . . 7 . 4 Fire 45 | . 7 28 . 10 Melee . | . . . . . Ram . | . . . . . Kick . | . . . . . Crush . | . . . . . Escape Stasis . | . . . . . Rewire . | . . . . . Trap . | . . . . . Miscellaneous . | . . . . . Route ------- -11/Scrapyard -10/Materials -10/Mines -10/Exiles (discovered 2 exits: [*Min x2]) -9/Mines History --------- Turn | Location | Event 7 | -11/Scrapyard | Discovered new exit (range 15) 49 | -11/Scrapyard | Entered Materials 262 | -10/Materials | Discovered new exit (range 12) 277 | -10/Materials | Entered Mines 364 | -10/Mines | Core integrity fell below 50% 410 | -10/Mines | Lost 4 parts (1p1n1u1w) 556 | -10/Mines | Joined a pair of Derelicts in attacking an 0b10 outpost 635 | -10/Mines | Deemed a non-threat by the Exiles lab entrance 635 | -10/Mines | Discovered new exit (range 5) 639 | -10/Mines | Entered Exiles 675 | -10/Exiles | Discovered new exit (range 14) 691 | -10/Exiles | Met 8R-AWN 709 | -10/Exiles | Met EX-HEX 753 | -10/Exiles | Met EX-BIN 840 | -10/Exiles | Met EX-DEC 860 | -10/Exiles | Build established: Scavenger-Mutant 894 | -10/Exiles | Discovered new exit (range 10) 905 | -10/Exiles | Entered Mines 1022 | -9/Mines | Learned Materials trap positions 1026 | -9/Mines | YI-UF0 nonchalantly dropped a Grenade Launcher on the ground 1067 | -9/Mines | Learned Materials trap positions 1105 | -9/Mines | Core integrity fell below 20% 1112 | -9/Mines | Destroyed by YI-UF0 with YI-UF0's Doublenader Last Messages --------------- Acquired Grenade Launcher. T-07 Excavator is excavating. T-07 Excavator destroyed. U-05 Engineer lays Concrete. Acquired Lgt. Ion Engine. U-05 Engineer lays Concrete. Structural Scanner melted. U-05 Engineer destroyed. Acquired Seismic Detector. Acquired 10 matter. Acquired derelict log, extracted data. Data stored: Materials trap records. K-01 Serf collects debris. L-31 Rogue suffers critical hit (Burn). L-31 Rogue destroyed. K-01 Serf destroyed. The unstable cave ceiling collapses. YI-UF0 mumbles something. The unstable cave ceiling collapses. Particle Gun destroyed. Map ----- +----------------------------------------------------+ | | | | | | | | | | | ????????????????????????????????????????????????? | | ????????????????????????????????????????????????? | | ????????????????????????????????????????????????? | | ????????????????????????????????????????????????? | | ????????????????????????????????????????????????? | | ##??????????????????????????????????????????????? | | ##?????????????????????????????????????????????? | | #??????#####??????????????????????????????????? | | ##????##! #????????""????????????????????????? | | ###??#=|%##????????"""???????????????????????? | | ##?##%=#????????? g???????????????????????? | | #??#!*#?????????# g???????????????????????? | | #??# #?????????? ???????????????????????? | | ##??# #?????????? ???????????????????????? | | # ##???# #?????????? ???????????????????????? | | # ###### #??????????? ##?????????????????????? | | # #??????????? #?????????????????????? | | # #???????????# #?????????????????????? | | ## ###### #???????????# #?????????????????????? | | ?####????# #???????????# #######??????##??#????? | | ?????????# #???????????#@ # ##???# # ##???? | | ?????????# #???????????# ##? # #???? | | ?????##### #???????????### # #???? | | ?????# #??#####??????# # ##??? | | ?????# ### #??# ##?????# # ?? | | ?????????# #??# ##????# g ?? | | ?????????# #### ##### ?? | | ?????????# = ?? | | ?????????# ##??? | | ?????????###### ### #???? | | ??????????????## # # # #### #????????? | | ???????????????## ########????#????????? | | ????????????????## ##????????????????????? | | ?????????????????# % #?????????????????????? | | ?????????????????# ##?????????????????????? | | ?????????????????# #??????????????????????? | | ?????????????????### #??????????????????????? | | ????????????????????## #?????????????????????? | | ?????????????????????# #????????????????????? | | ?????????????????????# #???????????????????? | | ?????????????????????## ??????????????????? | | ??????????????????????## ####?????????????????? | | ???????????????????????#####????????????????????? | | ????????????????????????????????????????????????? | | ????????????????????????????????????????????????? | +----------------------------------------------------+ Best States ------------- Heat Dissipation 39 Energy Generation 10 Energy Capacity 250 Matter Stores 300 Matter Capacity 300 Sight Range 16 Terrain Scan Density 10 ECM Strength 1 Armor Coverage 150 Evasion (%) 62 Item Schematics ----------------- None Robot Schematics ------------------ None Fabricated ------------ Nothing Repaired ---------- Nothing Alien Tech Used ----------------- None Achievements -------------- None Challenges ------------ None Game ------ Seed ProjectionMachineCutter Manual? 0 Play Time 00:15:46 Cumulative 2.4 hours Start 2025.06.22 @ 13:32:34 End 2025.06.22 @ 13:49:10 Sessions 1 Manual Loads 0 Difficulty Rogue Special Mode None Game No. 5 Rogue 5 Adventurer 0 Explorer 0 Win Type - Total 0 Types 0/0/0/0/0/0/0/0/0/0 Lore% 2 Gallery% 5 Achievement% 5 Wizard Run 0 Options --------- Layout 0 ASCII 0 Keyboard 0 Movement Mouse Keybinds 0 Fullscreen 1 Font 36/Smallcaps Map View 76x50 Zoom Use 0% Tactical HUD 0 Map Filters NONE Filters NONE Steam 1 RUN: 627e8192-7d10-4b7a-8e2e-a781f7d2ba8d